bitfinex-derivatives/quotes_SOLF0:USTF0_20260105
["timestamp","ask_amount","ask_price","bid_price","bid_amount"]
[1767630191360,6.6506,135.38,135.29,0.78050509]
[1767630191560,0.77139709,135.38,135.29,0.78050509]
[1767630192556,0.77139709,135.34,135.25,0.78050509]
[1767630193157,0.77139709,135.33,135.21,0.78050509]
[1767630194165,0.77139709,135.33,135.24,0.78050509]
[1767630194366,88.05139709,135.36,135.24,0.78050509]
[1767630194566,6.02164871,135.35,135.24,0.78050509]
[1767630194862,0.77139709,135.35,135.19,87.24]
[1767630195059,103.5356,135.27,135.15,0.78050509]
[1767630195261,0.77139709,135.23,135.12,111.08800509]
[1767630195572,0.77139709,135.23,135.12,0.78050509]
[1767630195762,0.77139709,135.22,135.12,0.78050509]
[1767630195957,0.77139709,135.21,135.12,0.78050509]
[1767630196159,0.77139709,135.19,135.09,88.04050509]
[1767630196464,0.77139709,135.19,135.16,0.04693719]
[1767630196661,0.77139709,135.19,135.1,0.78050509]
[1767630197057,0.04817267,135.15,135.1,0.78050509]
[1767630197468,0.77139709,135.25,135.12,110.3103]
[1767630197668,88.07139709,135.25,135.13,0.78050509]
[1767630198557,94.72809709,135.25,135.14,0.78050509]
[1767630199163,6.6557,135.27,135.18,0.82753912]
[1767630199364,93.9757,135.27,135.18,0.82753912]
[1767630199565,93.9757,135.27,135.18,0.78050509]
[1767630199862,6.6557,135.27,135.18,0.78050509]
[1767630200061,103.4974,135.32,135.18,0.78050509]
[1767630200263,0.77139709,135.3,135.18,0.78050509]
[1767630200479,6.00757494,135.29,135.18,0.78050509]
[1767630200774,6.6554,135.27,135.18,0.78050509]
[1767630200968,6.6554,135.27,135.13,0.78050509]
[1767630200969,0.77139709,135.25,135.13,0.78050509]
[1767630201159,7.42779709,135.25,135.14,0.78050509]
[1767630201363,7.42779709,135.25,135.14,104.39990509]
[1767630201364,0.77139709,135.25,135.14,104.39990509]
[1767630201674,190.8593,135.28,135.14,104.39990509]
[1767630201675,94.76629709,135.28,135.17,0.78050509]
[1767630202279,88.11139709,135.28,135.18,0.78050509]
[1767630202574,87.34,135.28,135.18,0.78050509]
[1767630204169,0.77139709,135.29,135.18,0.78050509]
[1767630204579,0.77139709,135.29,135.19,0.78050509]
[1767630204780,0.77139709,135.33,135.21,0.78050509]
[1767630205070,6.7922756,135.32,135.21,0.78050509]
[1767630205369,0.77139709,135.3,135.21,0.78050509]
[1767630206173,0.77139709,135.29,135.19,6.6586]
[1767630206567,0.77139709,135.29,135.2,0.78050509]
[1767630207676,0.77139709,135.29,135.19,6.6588]
[1767630207982,0.77139709,135.29,135.19,7.43930509]
[1767630210070,7.42569709,135.29,135.19,0.78050509]
[1767630210267,0.77139709,135.28,135.19,0.78050509]
[1767630210475,0.77139709,135.28,135.15,0.78050509]
[1767630210674,0.77139709,135.25,135.15,0.78050509]
[1767630211371,7.42749709,135.25,135.15,0.78050509]
[1767630211572,0.77139709,135.25,135.15,0.78050509]
[1767630212074,0.71297411,135.28,135.17,0.76425511]
[1767630212272,87.36,135.3,135.19,0.76425511]
[1767630212672,87.36,135.3,135.21,0.76425511]
[1767630213076,0.04725597,135.26,135.21,0.76425511]
[1767630213679,0.04725597,135.26,135.18,94.76335511]
[1767630214072,0.04725597,135.26,135.18,0.76425511]
[1767630214579,0.71297411,135.24,135.14,0.76425511]
[1767630214780,6.6576,135.22,135.14,0.76425511]
[1767630215081,0.71297411,135.22,135.14,0.76425511]
[1767630215273,6.6581,135.21,135.14,0.76425511]
[1767630215477,0.0474728,135.19,135.14,0.76425511]
[1767630215871,0.0474728,135.19,135.12,0.5025]
[1767630216277,6.6596,135.18,135.12,0.5025]
[1767630216471,0.0474728,135.19,135.12,0.5025]
[1767630216672,0.0474728,135.19,135.12,1.26675511]
[1767630216971,6.7065728,135.19,135.12,1.26675511]
[1767630217571,0.0474728,135.19,135.13,0.76425511]
[1767630218281,0.0474728,135.19,135.14,6.6613]
[1767630218480,0.0474728,135.19,135.14,7.42555511]
[1767630218674,0.71297411,135.25,135.15,0.76425511]
[1767630219077,6.6559,135.26,135.18,0.76425511]
[1767630219881,0.71297411,135.26,135.15,7.42485511]
[1767630220082,104.24747411,135.26,135.15,7.42485511]
[1767630220783,6.6563,135.25,135.16,7.42445511]
[1767630220982,103.5177,135.28,135.19,0.04821769]
[1767630221282,104.23617411,135.27,135.19,0.04821769]
[1767630221484,0.71297411,135.26,135.16,0.76425511]
[1767630221680,7.36877411,135.26,135.16,7.42445511]
[1767630221881,87.38,135.28,135.22,0.04694264]
[1767630222180,94.0348,135.28,135.22,0.04694264]
[1767630222386,94.0348,135.28,135.17,0.76425511]
[1767630222884,94.74777411,135.28,135.17,0.76425511]
[1767630223086,7.36807411,135.27,135.17,7.42375511]
[1767630223990,0.71297411,135.27,135.17,0.76425511]
[1767630224180,0.71297411,135.27,135.21,0.04668245]
[1767630224579,0.71297411,135.3,135.21,0.81093756]
[1767630225180,7.36667411,135.3,135.21,7.42175511]
[1767630225379,0.71297411,135.3,135.21,7.42175511]
[1767630226384,0.71297411,135.3,135.22,7.42155511]
[1767630226589,0.71297411,135.33,135.22,0.76425511]
[1767630227281,0.71297411,135.33,135.15,103.6132]
[1767630227282,0.71297411,135.29,135.16,0.76425511]
[1767630227479,0.71297411,135.27,135.16,0.76425511]
[1767630227893,94.74857411,135.26,135.17,6.6598]
[1767630228192,104.27047411,135.23,135.12,0.5025]
[1767630228384,7.37157411,135.2,135.12,0.5025]
[1767630228585,94.75157411,135.2,135.12,0.5025]
[1767630228777,0.71297411,135.23,135.12,1.26675511]
[1767630228983,94.0376,135.22,135.12,7.92895511]
[1767630229285,0.71297411,135.23,135.13,0.76425511]
[1767630229891,0.71297411,135.23,135.17,0.04721081]
[1767630230281,0.71297411,135.23,135.13,0.76425511]
[1767630230485,0.71297411,135.21,135.12,0.5025]
[1767630231081,6.659,135.19,135.12,0.5025]
[1767630231391,0.71297411,135.21,135.12,0.5025]
[1767630232083,0.04729879,135.18,135.12,0.5025]
[1767630234192,0.04729879,135.18,135.12,1.25467941]
[1767630235201,0.04729879,135.18,135.12,0.5025]
[1767630235500,6.70679879,135.18,135.12,0.5025]
[1767630235893,0.04729879,135.18,135.12,0.5025]
[1767630236093,0.15645056,135.1,134.99,0.75217941]
[1767630236299,0.15645056,135.13,135.01,0.75217941]
[1767630236804,0.15645056,135.13,135.04,0.75217941]
[1767630237188,6.81835056,135.13,135.04,0.75217941]
[1767630237698,87.4,135.15,135.04,0.75217941]
[1767630238206,0.16002601,135.16,135.06,0.75217941]
[1767630238497,6.6601,135.17,135.08,0.79919801]
[1767630238892,6.6601,135.17,135.08,0.75217941]
[1767630239295,87.42,135.18,135.08,0.75217941]
[1767630239694,6.82099501,135.19,135.08,0.75217941]
[1767630240296,6.82099501,135.19,135.09,7.41577941]
[1767630240495,103.5713,135.21,135.09,0.75217941]
[1767630240705,87.58523298,135.22,135.11,0.71929768]
[1767630241014,111.01408414,135.24,135.11,0.71929768]
[1767630241015,6.6565,135.24,135.14,0.71929768]
[1767630241505,94.0757,135.26,135.16,0.71929768]
[1767630242103,6.81195473,135.28,135.17,7.37889768]
[1767630242306,0.15725473,135.27,135.17,0.71929768]
[1767630243099,87.42,135.3,135.17,0.71929768]
[1767630243406,87.56726392,135.3,135.17,0.71929768]
[1767630244303,87.56726392,135.3,135.22,0.04708563]
[1767630244304,6.6542,135.29,135.22,0.04708563]
[1767630244603,87.56726392,135.3,135.22,0.04708563]
[1767630246104,0.14726392,135.3,135.22,0.04708563]
[1767630246308,0.11797476,135.29,135.22,0.04708563]
[1767630247012,0.10843511,135.28,135.16,88.09929768]
[1767630247310,0.09900504,135.27,135.16,0.71929768]
[1767630247510,0.09900504,135.27,135.17,0.71929768]
[1767630248506,87.4,135.28,135.18,0.71929768]
[1767630249017,87.4,135.28,135.19,7.37799768]
[1767630249511,87.4,135.28,135.19,0.71929768]
[1767630250619,94.0547,135.28,135.19,0.71929768]
[1767630250813,0.08968329,135.3,135.19,0.71929768]
[1767630251009,6.6542,135.29,135.19,7.37789768]
[1767630251214,103.52945975,135.36,135.22,0.71929768]
[1767630251416,0.70803487,135.35,135.24,0.71929768]
[1767630252616,0.70803487,135.35,135.25,0.71929768]
[1767630253218,0.70803487,135.35,135.26,6.6552]
[1767630253422,0.70803487,135.35,135.26,0.71929768]
[1767630254224,0.70803487,135.37,135.26,104.24619768]
[1767630254625,0.70803487,135.37,135.27,0.71929768]
[1767630255031,0.70803487,135.37,135.28,7.37349768]
[1767630255730,0.70803487,135.37,135.29,6.6537]
[1767630255935,24.99357373,135.38,135.29,0.71929768]
[1767630256728,24.99357373,135.38,135.29,88.05929768]
[1767630257633,24.99357373,135.38,135.29,94.71299768]
[1767630258431,0.70803487,135.43,135.32,104.20309768]
[1767630258622,0.70803487,135.43,135.32,0.71929768]
[1767630259631,7.35583487,135.42,135.32,0.71929768]
[1767630260136,0.70803487,135.42,135.32,0.71929768]
[1767630260339,94.71493487,135.44,135.33,0.71929768]
[1767630260537,0.70803487,135.43,135.33,0.71929768]
[1767630261438,0.70803487,135.43,135.34,6.6512]
[1767630261737,0.70803487,135.43,135.34,0.71929768]
[1767630262131,6.6459,135.46,135.36,0.71929768]
[1767630262439,7.35393487,135.46,135.36,0.71929768]
[1767630262934,0.70803487,135.45,135.34,87.3]
[1767630264032,0.70803487,135.42,135.33,6.6517]
[1767630264543,0.70803487,135.42,135.33,7.37099768]
[1767630264840,0.70803487,135.42,135.34,6.6514]
[1767630266738,0.70803487,135.42,135.37,0.04702288]
[1767630267537,7.35453487,135.45,135.37,0.04702288]
[1767630267726,0.70803487,135.45,135.37,0.04702288]
[1767630269536,0.70803487,135.48,135.37,0.76632056]
[1767630269932,0.70803487,135.48,135.37,0.71929768]
[1767630270428,6.6453,135.47,135.38,6.6494]
[1767630270626,7.35333487,135.47,135.38,6.6494]
[1767630271139,0.71593091,135.46,135.37,0.71929768]
[1767630273135,0.71593091,135.45,135.34,0.73758697]
[1767630273641,0.71593091,135.48,135.38,6.6501]
[1767630274034,91.85931898,135.49,135.36,7.38848697]
[1767630274035,7.36233091,135.46,135.36,7.38848697]
[1767630275136,0.71593091,135.45,135.36,0.73758697]
[1767630275444,0.71593091,135.45,135.32,190.7484]
[1767630275445,0.71593091,135.45,135.33,0.73758697]
[1767630276047,7.36333091,135.44,135.33,0.73758697]
[1767630276239,0.71593091,135.44,135.33,0.73758697]
[1767630276640,7.36363091,135.44,135.33,0.73758697]
[1767630276840,0.71593091,135.44,135.34,0.73758697]
[1767630277232,0.71593091,135.48,135.36,0.73758697]
[1767630277438,0.71593091,135.48,135.37,0.73758697]
[1767630278240,0.71593091,135.48,135.41,0.04709009]
[1767630278441,6.6459,135.47,135.41,0.04709009]
[1767630279044,7.36183091,135.47,135.41,0.04709009]
[1767630279647,7.36003091,135.51,135.43,6.6476]
[1767630279949,0.71593091,135.51,135.41,0.78467706]
[1767630280249,0.71593091,135.51,135.41,0.73758697]
[1767630281343,0.71593091,135.51,135.44,6.6471]
[1767630281748,0.71593091,135.51,135.43,0.73758697]
[1767630282149,0.71593091,135.51,135.45,6.6468]
[1767630282348,0.71593091,135.51,135.43,0.73758697]
[1767630282349,0.71593091,135.54,135.44,0.73758697]
[1767630283039,7.35843091,135.54,135.44,0.73758697]
[1767630283240,7.35843091,135.54,135.45,6.6466]
[1767630283443,0.71593091,135.54,135.45,0.73758697]
[1767630283638,0.71593091,135.54,135.46,6.6461]
[1767630284149,0.71593091,135.54,135.48,0.04692521]
[1767630284343,7.35853091,135.54,135.48,0.04692521]
[1767630284540,0.71593091,135.53,135.48,0.04692521]
[1767630284938,0.71593091,135.53,135.41,87.95758697]
[1767630285143,7.35963091,135.52,135.43,6.6475]
[1767630285539,7.35963091,135.52,135.44,6.6472]
[1767630285747,0.71593091,135.52,135.44,7.38478697]
[1767630286356,6.6427,135.54,135.44,0.73758697]
[1767630286544,87.99593091,135.55,135.44,0.73758697]
[1767630287344,0.71593091,135.54,135.46,6.6462]
[1767630288554,0.71593091,135.54,135.47,6.6457]
[1767630288956,87.28,135.55,135.48,6.6451]
[1767630289345,87.28,135.55,135.46,103.385]
[1767630289551,0.71593091,135.6,135.5,7.38188697]
[1767630289861,0.71593091,135.6,135.5,0.73758697]
[1767630290160,7.35643091,135.58,135.5,0.73758697]
[1767630290351,0.71593091,135.58,135.5,0.73758697]
[1767630290656,0.71593091,135.58,135.44,103.3999]
[1767630290657,7.35783091,135.55,135.47,6.6457]
[1767630290959,0.71593091,135.55,135.48,6.6452]
[1767630291849,0.71593091,135.55,135.47,0.73758697]
[1767630292250,0.71593091,135.54,135.42,0.73758697]
[1767630292449,0.71593091,135.54,135.44,0.73758697]
[1767630292958,0.71593091,135.54,135.45,0.77635185]
[1767630295656,6.6435,135.52,135.45,0.77635185]
[1767630296554,6.6435,135.52,135.42,87.2]
[1767630296555,103.3269,135.54,135.43,0.77635185]
[1767630296751,0.72410229,135.54,135.43,0.77635185]
[1767630297554,0.72410229,135.52,135.43,0.77635185]
[1767630298553,6.6439,135.51,135.43,7.42415185]
[1767630298955,0.72410229,135.52,135.43,0.77635185]
[1767630299154,0.72410229,135.51,135.43,0.77635185]
[1767630299756,6.6449,135.49,135.4,7.42525185]
[1767630299956,6.6449,135.49,135.4,0.77635185]
[1767630300465,0.72410229,135.49,135.4,0.77635185]
[1767630301264,7.36940229,135.49,135.4,0.77635185]
[1767630301464,0.72410229,135.49,135.4,0.77635185]
[1767630302562,6.6455,135.48,135.4,0.77635185]
[1767630303055,5.30342127,135.49,135.4,0.77635185]
[1767630303458,6.6454,135.48,135.4,7.42555185]
[1767630303658,7.3950655,135.48,135.4,0.77635185]
[1767630303868,0.7496655,135.48,135.4,0.77635185]
[1767630304354,6.6459,135.47,135.4,0.77635185]
[1767630305160,6.6452,135.49,135.41,0.76833153]
[1767630305463,7.3948655,135.49,135.41,0.76833153]
[1767630306260,0.7496655,135.48,135.38,6.6498]
[1767630306468,0.7496655,135.48,135.39,0.76833153]
[1767630307467,0.7496655,135.48,135.36,7.41943153]
[1767630307468,0.7496655,135.47,135.36,7.41943153]
[1767630307661,5.32898448,135.45,135.36,0.76833153]
[1767630308263,5.32898448,135.48,135.37,0.76833153]
[1767630309066,11.97438448,135.48,135.4,6.6492]
[1767630309371,0.7496655,135.48,135.39,0.76833153]
[1767630310772,7.3951655,135.48,135.39,0.76833153]
[1767630310970,0.7496655,135.48,135.39,0.76833153]
[1767630311472,0.7496655,135.48,135.4,6.6491]
[1767630312169,0.7496655,135.48,135.4,7.41743153]
[1767630312568,7.3949655,135.48,135.4,7.41743153]
[1767630314563,0.7496655,135.48,135.41,6.6488]
[1767630314968,6.6448,135.5,135.43,6.6477]
[1767630315568,11.97288448,135.51,135.43,6.6477]
[1767630316071,11.97288448,135.51,135.43,7.41603153]
[1767630317160,87.24,135.52,135.4,103.4305]
[1767630317161,11.97168448,135.54,135.44,0.76833153]
[1767630317366,0.7496655,135.54,135.42,0.76833153]
[1767630317576,0.7496655,135.52,135.42,0.76833153]
[1767630317880,0.7496655,135.51,135.42,0.76833153]
[1767630318280,0.7496655,135.5,135.42,0.76833153]
[1767630318768,0.7496655,135.5,135.42,7.41633153]
[1767630320778,0.7496655,135.5,135.42,6.648]
[1767630320981,0.7496655,135.53,135.44,0.76833153]
[1767630322484,0.7496655,135.53,135.45,0.76833153]
[1767630323165,0.7496655,135.53,135.46,0.76833153]
[1767630323569,87.9896655,135.56,135.46,0.76833153]
[1767630324185,87.9896655,135.56,135.47,7.41403153]
[1767630324777,0.7496655,135.55,135.47,0.76833153]
[1767630326682,7.3917655,135.55,135.47,0.76833153]
[1767630328184,0.7496655,135.53,135.44,7.41523153]
[1767630328374,0.7496655,135.53,135.45,0.76833153]
[1767630329385,6.6423,135.55,135.47,0.76833153]
[1767630329586,87.9896655,135.56,135.47,0.76833153]
[1767630329976,94.6311655,135.56,135.48,6.6451]
[1767630330286,94.6311655,135.56,135.47,0.76833153]
[1767630330786,7.40578556,135.55,135.47,7.41403153]
[1767630333185,6.6424,135.54,135.47,7.41403153]
[1767630333689,7.40578556,135.55,135.47,7.41403153]
[1767630333888,0.76348556,135.55,135.47,7.41403153]
[1767630334694,0.76348556,135.54,135.44,0.83501777]
[1767630335285,0.76348556,135.52,135.44,7.48221777]
[1767630336682,0.76348556,135.52,135.45,6.6467]
[1767630336882,0.76348556,135.52,135.44,0.83501777]
[1767630337186,7.42824927,135.55,135.41,0.83501777]
[1767630337187,0.76348556,135.5,135.41,0.83501777]
[1767630338589,0.76348556,135.5,135.42,7.48311777]
[1767630339500,0.76348556,135.5,135.42,0.83501777]
[1767630339785,0.76348556,135.5,135.41,6.6486]
[1767630340175,0.76348556,135.5,135.42,0.83501777]
[1767630340584,87.2,135.51,135.42,0.83501777]
[1767630341582,93.8438,135.51,135.43,6.6476]
[1767630341894,87.2,135.51,135.44,0.83501777]
[1767630342184,87.2,135.51,135.45,0.83501777]
[1767630342979,93.8434,135.51,135.45,0.83501777]
[1767630343177,6.6434,135.51,135.45,0.83501777]
[1767630343991,6.6434,135.51,135.45,7.48111777]
[1767630344186,6.6427,135.52,135.45,7.48111777]
[1767630345285,0.76348556,135.53,135.46,7.48061777]
[1767630345684,90.1289755,135.54,135.46,7.48061777]
[1767630345886,0.76348556,135.53,135.46,7.48061777]
[1767630346595,6.6427,135.52,135.46,0.83501777]
[1767630347004,0.76348556,135.53,135.46,0.83501777]
[1767630347192,90.1289755,135.54,135.46,0.83501777]
[1767630347399,96.7711755,135.54,135.47,6.6451]
[1767630347698,0.76348556,135.56,135.47,0.83501777]
[1767630347699,87.98348556,135.56,135.47,0.83501777]
[1767630349102,94.62468556,135.56,135.47,7.47971777]
[1767630350499,0.76348556,135.54,135.47,0.83501777]
[1767630350999,2.9089755,135.54,135.46,0.83501777]
[1767630352096,6.6427,135.52,135.46,0.83501777]
[1767630352898,10.34567403,135.52,135.43,87.98707935]
[1767630353098,10.34567403,135.52,135.44,0.80707935]
[1767630353407,0.79399853,135.51,135.41,0.80707935]
[1767630354701,6.6438,135.5,135.43,0.80707935]
[1767630356107,6.6443,135.49,135.43,7.45417935]
[1767630356303,6.6443,135.49,135.43,0.80707935]
[1767630356499,3.70297403,135.5,135.43,0.80707935]
[1767630358695,6.6442,135.49,135.43,0.80707935]
[1767630359107,3.70297403,135.5,135.43,0.80707935]
[1767630359508,0.79399853,135.5,135.43,7.45407935]
[1767630359702,93.8436,135.51,135.44,0.80707935]
[1767630359894,87.2,135.51,135.44,0.80707935]
[1767630360100,87.99399853,135.51,135.44,0.80707935]
[1767630360299,87.99399853,135.51,135.44,7.45367935]
[1767630361102,87.99399853,135.51,135.45,6.6461]
[1767630362909,87.99399853,135.51,135.46,6.6456]
[1767630363606,103.2888,135.58,135.47,6.6451]
[1767630363607,0.79351665,135.54,135.47,6.6451]
[1767630363908,0.79351665,135.54,135.47,7.4284979]
[1767630364412,0.79351665,135.54,135.48,6.6445]
[1767630366819,0.79351665,135.54,135.46,6.6453]
[1767630367114,0.04694239,135.52,135.46,7.4286979]
[1767630368613,0.04694239,135.52,135.47,7.4283979]
[1767630368819,87.22,135.56,135.47,0.7833979]
[1767630369116,3.70249215,135.57,135.47,0.7833979]
[1767630369321,3.70249215,135.57,135.5,7.4268979]
[1767630370210,87.99351665,135.59,135.51,7.4263979]
[1767630370410,90.90249215,135.59,135.51,7.4263979]
[1767630370611,5.34057873,135.58,135.51,7.4263979]
[1767630370811,90.90249215,135.59,135.47,103.3657]
[1767630370812,90.90249215,135.59,135.52,7.4259979]
[1767630371616,97.54189215,135.59,135.52,7.4259979]
[1767630371816,97.54189215,135.59,135.54,0.04685162]
[1767630372120,6.6398,135.58,135.54,0.04685162]
[1767630373321,7.43331665,135.58,135.49,0.7833979]
[1767630373721,7.43331665,135.58,135.51,7.4265979]
[1767630377322,0.79351665,135.56,135.49,6.6437]
[1767630378221,90.90249215,135.59,135.5,7.4268979]
[1767630378427,7.43331665,135.58,135.5,7.4268979]
[1767630378726,1.8597206,135.56,135.5,7.4268979]
[1767630379024,1.8597206,135.56,135.51,6.6432]
[1767630379719,1.8597206,135.56,135.52,6.6427]
[1767630380023,1.8597206,135.58,135.52,7.4260979]
[1767630380227,0.79351665,135.61,135.48,105.2188206]
[1767630380228,1.8597206,135.59,135.53,7.4254979]
[1767630382330,1.8597206,135.57,135.5,0.7833979]
[1767630383523,1.8597206,135.57,135.51,7.4263979]
[1767630383731,1.8597206,135.57,135.51,0.7833979]
[1767630384030,1.8597206,135.58,135.51,0.7833979]
[1767630384433,1.8597206,135.58,135.54,6.6417]
[1767630384730,1.8597206,135.6,135.53,0.7833979]
[1767630385532,1.8597206,135.6,135.54,6.6417]
[1767630389840,1.8597206,135.6,135.55,6.6412]
[1767630390437,7.43131665,135.62,135.55,6.6412]
[1767630390644,1.8597206,135.6,135.55,7.4245979]
[1767630391141,87.18,135.63,135.51,103.335]
[1767630391142,87.18,135.63,135.56,7.48383811]
[1767630391342,1.8597206,135.61,135.56,7.48383811]
[1767630392638,1.8597206,135.59,135.53,0.84313811]
[1767630393339,1.8597206,135.59,135.54,6.6417]
[1767630393540,1.8597206,135.59,135.53,0.84313811]
[1767630394636,1.8597206,135.59,135.53,7.48533811]
[1767630396939,8.4990206,135.59,135.53,7.48533811]
[1767630397139,1.8597206,135.57,135.53,0.84313811]
[1767630397339,1.8597206,135.57,135.5,0.84313811]
[1767630397535,1.8597206,135.55,135.5,0.84313811]
[1767630398440,2.06e-05,135.55,135.51,0.84313811]
[1767630399549,2.06e-05,135.55,135.52,6.6425]
[1767630400248,1.8597206,135.57,135.52,6.6425]
[1767630400450,1.8597206,135.58,135.53,0.84313811]
[1767630400749,2.06e-05,135.58,135.53,0.84313811]
[1767630401048,2.06e-05,135.58,135.5,0.84313811]
[1767630401634,1.8597206,135.57,135.5,0.84313811]
[1767630402547,1.8597206,135.57,135.52,6.6424]
[1767630402746,1.8597206,135.58,135.51,0.84313811]
[1767630403638,88.02847444,135.63,135.56,0.84313811]
[1767630403843,1.8597206,135.62,135.56,0.84313811]
[1767630404847,1.8597206,135.6,135.55,6.6407]
[1767630406141,1.8597206,135.6,135.53,87.98313811]
[1767630406651,1.8597206,135.6,135.55,6.6412]
[1767630407243,2.72819504,135.62,135.54,0.84313811]
[1767630407443,2.72819504,135.62,135.56,6.6407]
[1767630407650,2.72819504,135.62,135.56,7.48383811]
[1767630407852,1.8597206,135.62,135.56,7.48383811]
[1767630409348,0.86847444,135.67,135.57,0.84313811]
[1767630409548,1.8597206,135.65,135.57,0.84313811]
[1767630409942,1.8597206,135.67,135.61,0.84313811]
[1767630411047,1.8597206,135.68,135.61,0.84313811]
[1767630411254,1.8597206,135.68,135.62,7.48083811]
[1767630412058,1.8597206,135.68,135.63,6.6372]
[1767630412945,1.8597206,135.68,135.62,0.84313811]
[1767630413142,1.8597206,135.71,135.64,0.87680041]
[1767630414559,1.8597206,135.71,135.65,7.51300041]
[1767630414857,0.79679709,135.68,135.59,0.87680041]
[1767630415053,1.8597206,135.67,135.6,0.87680041]
[1767630415248,0.79679709,135.68,135.62,6.6377]
[1767630415448,2.65651769,135.68,135.62,6.6377]
[1767630415950,0.79679709,135.71,135.63,0.87680041]
[1767630416156,1.8597206,135.69,135.63,0.87680041]
[1767630416744,1.8597206,135.69,135.65,0.04672388]
[1767630417752,1.8597206,135.69,135.63,0.87680041]
[1767630420250,1.8597206,135.67,135.63,0.87680041]
[1767630420450,1.8597206,135.68,135.63,0.87680041]
[1767630420653,1.8597206,135.66,135.62,6.6375]
[1767630421967,7.43119709,135.69,135.62,6.6375]
[1767630422167,1.8597206,135.66,135.62,6.6375]
[1767630422465,1.8597206,135.66,135.6,94.59540041]
[1767630422664,1.8597206,135.66,135.6,87.95680041]
[1767630423161,0.04693258,135.64,135.6,87.95680041]
[1767630423564,0.04693258,135.64,135.61,6.6382]
[1767630424066,1.8597206,135.69,135.61,0.86247145]
[1767630424563,138.05587347,135.77,135.61,0.86247145]
[1767630424564,1.8597206,135.71,135.63,0.86247145]
[1767630425064,1.8597206,135.71,135.65,6.6363]
[1767630426061,1.8597206,135.72,135.66,0.86247145]
[1767630426262,87.1,135.76,135.66,103.2233]
[1767630426455,1.8597206,135.74,135.69,6.6341]
[1767630426650,1.8597206,135.74,135.67,0.86247145]
[1767630428257,1.8597206,135.74,135.69,6.6343]
[1767630428765,1.8597206,135.74,135.67,0.86247145]
[1767630428952,1.8597206,135.74,135.68,0.86247145]
[1767630429753,1.8597206,135.74,135.69,6.6343]
[1767630429960,1.8597206,135.74,135.68,0.86247145]
[1767630430160,1.8597206,135.74,135.7,6.6339]
[1767630430561,1.8597206,135.74,135.68,0.86247145]
[1767630430867,1.8597206,135.74,135.69,6.6344]
[1767630431064,1.8597206,135.74,135.68,0.86247145]
[1767630432061,1.8597206,135.72,135.65,0.86247145]
[1767630432858,1.8597206,135.7,135.66,6.6358]
[1767630433762,0.84203701,135.72,135.66,6.6358]
[1767630433970,1.8597206,135.71,135.66,6.6358]
[1767630435562,1.8597206,135.69,135.65,6.6362]
[1767630435965,1.8597206,135.72,135.64,0.86247145]
[1767630436568,2.70175761,135.72,135.64,0.86247145]
[1767630436767,0.84203701,135.72,135.66,6.6358]
[1767630437076,1.8597206,135.73,135.66,0.86247145]
[1767630438468,2.70175761,135.74,135.67,87.90247145]
[1767630438771,1.8597206,135.74,135.68,0.86247145]
[1767630439570,1.8597206,135.74,135.68,7.49687145]
[1767630439872,1.8597206,135.74,135.68,0.86247145]
[1767630440468,0.84203701,135.76,135.68,0.86247145]
[1767630441566,0.84203701,135.76,135.69,6.6343]
[1767630441770,9.52824631,135.77,135.67,87.04]
[1767630441771,0.84203701,135.74,135.67,87.04]
[1767630442667,0.84203701,135.74,135.67,93.6749]
[1767630443073,0.84203701,135.74,135.65,0.86247145]
[1767630443267,0.84203701,135.72,135.66,6.6358]
[1767630444075,0.84203701,135.72,135.66,7.49827145]
[1767630445871,0.84203701,135.72,135.66,0.86247145]
[1767630446969,0.84203701,135.72,135.66,7.49827145]
[1767630448378,0.84203701,135.72,135.66,6.6358]
[1767630448877,7.47503701,135.72,135.64,0.86247145]
[1767630449374,0.84203701,135.7,135.62,0.86247145]
[1767630450782,7.51773905,135.69,135.62,7.50017145]
[1767630452977,7.51823905,135.68,135.6,94.50032068]
[1767630453472,7.51823905,135.68,135.63,0.04678594]
[1767630454274,0.88323905,135.66,135.58,0.82192068]
[1767630455077,0.88323905,135.66,135.6,6.6386]
[1767630455281,0.88323905,135.69,135.6,0.82192068]
[1767630456074,0.88323905,135.69,135.58,0.82192068]
[1767630456375,0.88323905,135.67,135.58,0.82192068]
[1767630457184,0.88323905,135.66,135.58,0.82192068]
[1767630457882,0.88323905,135.66,135.6,6.6387]
[1767630458582,0.88323905,135.69,135.61,7.46012068]
[1767630459479,0.88323905,135.68,135.61,7.46012068]
[1767630460583,7.51813905,135.68,135.61,0.82192068]
[1767630461480,7.51813905,135.68,135.61,7.46012068]
[1767630462576,0.88323905,135.68,135.61,7.46012068]
[1767630465586,7.51813905,135.68,135.61,7.46012068]
[1767630466479,0.88323905,135.68,135.61,7.46012068]
[1767630466684,0.88323905,135.67,135.59,7.46072068]
[1767630466882,0.88323905,135.67,135.59,0.82192068]
[1767630467589,7.51873905,135.67,135.6,7.46072068]
[1767630469786,6.6359,135.66,135.6,0.82192068]